bitfinex-derivatives/quotes_BTCF0:USTF0_20241214
["timestamp","ask_amount","ask_price","bid_price","bid_amount"]
[1734201907429,0.62043819,100930.0,100920.0,0.22770613]
[1734201907735,0.68226785,100930.0,100920.0,0.17816013]
[1734201907925,0.71366785,100930.0,100920.0,0.17816013]
[1734201909129,0.049546,100920.0,100910.0,0.57184453]
[1734201909329,0.74134268,100920.0,100910.0,0.6152048]
[1734201909728,0.74134268,100920.0,100910.0,0.60555462]
[1734201909930,0.74134268,100920.0,100910.0,0.26848522]
[1734201910230,0.74134268,100920.0,100910.0,0.44646153]
[1734201910431,0.74133021,100920.0,100910.0,0.44646153]
[1734201910639,0.65248381,100920.0,100910.0,0.44646153]
[1734201911032,0.80075134,100920.0,100910.0,0.20927631]
[1734201912131,0.65248381,100920.0,100910.0,0.20927631]
[1734201913237,0.66220661,100920.0,100910.0,0.17797631]
[1734201915029,0.53854729,100920.0,100910.0,0.17797631]
[1734201915332,0.66220661,100920.0,100910.0,0.22752731]
[1734201915936,0.60037695,100920.0,100910.0,0.22752731]
[1734201916642,0.59065415,100920.0,100910.0,0.22752731]
[1734201921135,0.82774574,100920.0,100910.0,0.22752731]
[1734201921437,0.44963047,100920.0,100910.0,0.52654219]
[1734201921644,0.44963047,100920.0,100910.0,0.63390269]
[1734201921839,0.44963047,100920.0,100910.0,0.98853041]
[1734201921840,0.3608,100920.0,100910.0,0.98853041]
[1734201922036,0.67948062,100930.0,100910.0,0.98853041]
[1734201922341,0.67948062,100930.0,100920.0,0.55719642]
[1734201922645,0.67948062,100930.0,100920.0,0.60055692]
[1734201923642,0.67948062,100930.0,100920.0,0.37926088]
[1734201924040,0.62993862,100930.0,100920.0,0.37926088]
[1734201926544,0.56810896,100930.0,100920.0,0.71909763]
[1734201926744,0.44963047,100930.0,100920.0,0.95522121]
[1734201928846,0.51146013,100930.0,100920.0,0.95522121]
[1734201929242,0.51146013,100930.0,100920.0,0.89339155]
[1734201929443,0.67947962,100930.0,100920.0,0.33008644]
[1734201929640,0.59064915,100930.0,100920.0,0.46472638]
[1734201929841,0.62214915,100930.0,100920.0,0.46472638]
[1734201932047,0.77041668,100930.0,100920.0,0.46472638]
[1734201933237,0.62214915,100930.0,100920.0,0.46472638]
[1734201933435,0.62214915,100930.0,100920.0,0.52655604]
[1734201933436,0.52881949,100930.0,100920.0,0.52655604]
[1734201933644,0.47927849,100930.0,100920.0,0.52655604]
[1734201933845,0.47927849,100930.0,100920.0,0.55795604]
[1734201934247,0.54110815,100930.0,100920.0,0.55795604]
[1734201934551,0.56815775,100930.0,100920.0,0.55795604]
[1734201934745,0.56815775,100930.0,100920.0,0.60131289]
[1734201935246,0.56815775,100930.0,100920.0,0.55795604]
[1734201936652,0.47927849,100930.0,100920.0,0.55795604]
[1734201936847,0.56814628,100930.0,100920.0,0.55795604]
[1734201937651,0.56814628,100930.0,100920.0,0.60131226]
[1734201937856,0.80074634,100930.0,100920.0,0.22133387]
[1734201938047,0.049546,100920.0,100910.0,0.41516253]
[1734201938348,0.049546,100920.0,100910.0,0.22133915]
[1734201938349,0.86394792,100920.0,100910.0,0.22133915]
[1734201939648,0.86394792,100920.0,100910.0,0.17797731]
[1734201943542,0.80211826,100920.0,100910.0,0.22752831]
[1734201943949,0.86394792,100920.0,100910.0,0.17797731]
[1734201946054,0.87386776,100920.0,100910.0,0.17797731]
[1734201951552,0.89349594,100920.0,100910.0,0.17797731]
[1734201956358,0.77502087,100920.0,100910.0,0.17797731]
[1734201956748,0.77502087,100920.0,100910.0,0.22752831]
[1734201959059,0.41422087,100920.0,100910.0,0.22752831]
[1734201959359,1.13582087,100920.0,100910.0,0.22752831]
[1734201962266,1.13582087,100920.0,100910.0,0.46471353]
[1734201962862,1.13582087,100920.0,100910.0,0.22752831]
[1734201963876,1.13582087,100920.0,100910.0,0.27089243]
[1734201964166,1.13582087,100920.0,100910.0,0.50807765]
[1734201964557,1.13582087,100920.0,100910.0,0.46471353]
[1734201965067,1.31351513,100920.0,100910.0,0.46471353]
[1734201965269,1.31351513,100920.0,100910.0,0.50807765]
[1734201966260,1.19765053,100920.0,100910.0,0.28054934]
[1734201966467,1.22707726,100920.0,100910.0,0.17825764]
[1734201967159,0.049551,100910.0,100900.0,0.33718522]
[1734201967359,0.049551,100910.0,100900.0,0.38055382]
[1734201967360,0.86019731,100910.0,100900.0,0.38055382]
[1734201967567,0.89099731,100910.0,100900.0,0.38055382]
[1734201968164,0.89099731,100910.0,100900.0,0.55885837]
[1734201969668,0.53019731,100910.0,100900.0,0.55885837]
[1734201969873,1.25179731,100910.0,100900.0,0.55885837]
[1734201970173,1.07387713,100910.0,100900.0,0.51548977]
[1734201970369,1.25179731,100910.0,100900.0,0.51548977]
[1734201970873,1.25179731,100910.0,100900.0,0.55885851]
[1734201971068,1.25179731,100910.0,100900.0,0.51548977]
[1734201971578,1.07387713,100910.0,100900.0,0.51548977]
[1734201972571,1.07387713,100910.0,100900.0,0.55885851]
[1734201972962,0.35227713,100910.0,100900.0,0.51548977]
[1734201973171,1.07387713,100910.0,100900.0,0.51548977]
[1734201974670,1.25179731,100910.0,100900.0,0.55885859]
[1734201975272,0.53019731,100910.0,100900.0,0.55885859]
[1734201975472,1.25179731,100910.0,100900.0,0.55885859]
[1734201976473,1.07387713,100910.0,100900.0,0.51548977]
[1734201976870,1.25179731,100910.0,100900.0,0.32167338]
[1734201978081,1.25179731,100910.0,100900.0,0.27830455]
[1734201980878,1.07387713,100910.0,100900.0,0.27830455]
[1734201981381,0.95021781,100910.0,100900.0,0.27830455]
[1734201981685,1.07387713,100910.0,100900.0,0.27830455]
[1734201981878,1.25179731,100910.0,100900.0,0.27830455]
[1734201982183,1.07387713,100910.0,100900.0,0.27830455]
[1734201985782,1.09368801,100910.0,100900.0,0.27830455]
[1734201988592,1.09368801,100910.0,100900.0,0.32167386]
[1734201988593,1.27160819,100910.0,100900.0,0.32167386]
[1734201991285,1.27160819,100910.0,100900.0,0.1]
[1734201991286,1.12334138,100910.0,100900.0,0.1]
[1734201991486,0.049556,100900.0,100880.0,0.54345454]
[1734201991791,1.17027762,100890.0,100880.0,0.2903483]
[1734201992090,1.09961691,100890.0,100880.0,0.33012651]
[1734201992295,1.16144657,100890.0,100880.0,0.33012651]
[1734201992586,1.16144644,100890.0,100880.0,0.33012651]
[1734201993193,1.09961678,100890.0,100880.0,0.33012651]
[1734201993392,1.04033605,100890.0,100880.0,0.62660804]
[1734201993592,1.04033696,100890.0,100880.0,0.62660804]
[1734201993788,1.04033456,100890.0,100880.0,0.85765457]
[1734201994090,0.67953456,100890.0,100880.0,0.85765457]
[1734201994286,0.56815018,100890.0,100880.0,0.70022671]
[1734201994592,0.56815018,100890.0,100880.0,0.68176723]
[1734201995591,0.44966161,100890.0,100880.0,0.68176723]
[1734201995888,0.44966161,100890.0,100880.0,1.09834253]
[1734201996191,0.08886161,100890.0,100880.0,1.07752776]
[1734201996394,0.56815018,100900.0,100890.0,0.049561]
[1734201996595,0.56815018,100900.0,100890.0,0.77458136]
[1734201996987,0.20735018,100900.0,100890.0,1.129327]
[1734201997288,0.08886161,100900.0,100890.0,1.40499376]
[1734201997491,0.08886161,100900.0,100890.0,1.06745972]
[1734201997492,0.67953584,100900.0,100890.0,1.06745972]
[1734201997688,0.67953584,100900.0,100890.0,0.9502999]
[1734201997988,0.67953584,100900.0,100890.0,1.01212956]
[1734201998700,0.67953584,100900.0,100890.0,0.9502999]
[1734202000292,0.67953584,100900.0,100890.0,0.95086083]
[1734202000794,0.67953584,100900.0,100890.0,0.96052632]
[1734202001096,0.67953584,100900.0,100890.0,0.95086083]
[1734202001697,0.56815018,100900.0,100890.0,1.01269049]
[1734202001989,0.56815018,100900.0,100890.0,1.12985031]
[1734202003096,0.08886161,100900.0,100890.0,1.12985031]
[1734202004494,0.08886161,100900.0,100890.0,1.12960239]
[1734202008598,0.08886161,100900.0,100890.0,1.13565675]
[1734202008795,0.08886161,100900.0,100890.0,1.19343935]
[1734202008995,0.56815018,100910.0,100900.0,0.049556]
[1734202009191,0.56815018,100910.0,100900.0,0.87605354]
[1734202009696,0.56815018,100910.0,100900.0,0.9378832]
[1734202009893,0.44966161,100910.0,100900.0,0.74380873]
[1734202010401,0.57807002,100920.0,100900.0,1.09855437]
[1734202010596,0.62761602,100920.0,100910.0,0.44756521]
[1734202010903,0.62761602,100920.0,100910.0,0.49092748]
[1734202011404,0.68944568,100920.0,100910.0,0.49092748]
[1734202011604,0.57807002,100920.0,100910.0,0.49092748]
[1734202013495,0.57807002,100920.0,100910.0,0.28074682]
[1734202013496,0.75127534,100920.0,100910.0,0.28074682]
[1734202013802,0.75127534,100920.0,100910.0,0.04336227]
[1734202013993,0.87415128,100920.0,100910.0,0.04336227]
[1734202017189,0.75566271,100920.0,100910.0,0.04336227]
[1734202017504,0.049551,100910.0,100900.0,0.34876821]
[1734202017801,0.67924677,100910.0,100900.0,0.39213292]
[1734202017998,0.67924677,100910.0,100900.0,0.33030326]
[1734202018201,0.049556,100900.0,100890.0,1.04425857]
[1734202018397,0.56091819,100900.0,100890.0,0.42264069]
[1734202018604,0.47218566,100900.0,100890.0,0.18525614]
[1734202018803,0.410356,100900.0,100890.0,0.18525614]
[1734202019507,0.47218566,100900.0,100890.0,0.15475614]
[1734202019700,0.47218566,100900.0,100890.0,0.09292648]
[1734202019893,0.53668566,100900.0,100890.0,0.09292648]
[1734202020097,0.53668566,100900.0,100890.0,0.04336648]
[1734202021217,0.62537124,100900.0,100890.0,0.28061117]
[1734202021506,0.74361869,100900.0,100890.0,0.04336648]
[1734202022493,0.38281869,100900.0,100890.0,0.04336648]
[1734202022700,0.74361869,100900.0,100890.0,0.04336648]
[1734202023007,0.68178903,100900.0,100890.0,0.15475714]
[1734202023204,0.59310345,100900.0,100890.0,0.39200183]
[1734202023908,0.60268985,100900.0,100890.0,0.39200183]
[1734202024801,0.60268985,100900.0,100890.0,0.34863535]
[1734202025403,0.66451951,100900.0,100890.0,0.34863535]
[1734202025599,0.52860345,100900.0,100890.0,0.34863535]
[1734202025800,0.20693093,100900.0,100890.0,0.39200443]
[1734202026102,0.08868348,100900.0,100890.0,0.6818393]
[1734202026306,0.08868348,100900.0,100890.0,0.7145393]
[1734202026611,0.13823948,100900.0,100890.0,0.7145393]
[1734202028298,0.13823948,100900.0,100890.0,0.7762393]
[1734202030500,0.13823948,100900.0,100890.0,0.77612213]
[1734202032511,0.08868348,100900.0,100890.0,0.77612213]
[1734202032807,0.08868348,100900.0,100890.0,1.19875179]
[1734202033013,0.56773093,100910.0,100900.0,0.049556]
[1734202033223,0.56773093,100910.0,100900.0,0.75056249]
[1734202034216,0.56773093,100910.0,100900.0,0.98051114]
[1734202034217,0.44948348,100910.0,100900.0,0.98051114]
[1734202034918,0.44948348,100910.0,100900.0,0.74308891]
[1734202035210,0.56773093,100920.0,100900.0,1.45975595]
[1734202035420,0.20693093,100920.0,100910.0,0.62893111]
[1734202035605,0.08868348,100920.0,100910.0,0.96724884]
[1734202035805,0.08868348,100920.0,100910.0,0.72987042]
[1734202036218,0.08868348,100920.0,100910.0,0.77942142]
[1734202036510,0.56773093,100930.0,100920.0,0.049546]
[1734202036713,0.56773093,100930.0,100920.0,0.45388674]
[1734202036918,0.44948348,100930.0,100920.0,0.97998767]
[1734202037109,0.44998348,100930.0,100920.0,0.75060977]
[1734202037417,0.44998348,100930.0,100920.0,0.45388674]
[1734202037711,0.3613,100930.0,100920.0,0.75060977]
[1734202037916,0.0005,100930.0,100920.0,0.9797021]
[1734202038111,0.56773093,100940.0,100930.0,0.049541]
[1734202038415,0.56773093,100940.0,100930.0,0.15473974]
[1734202039221,0.44948348,100940.0,100930.0,0.15473974]
[1734202039420,0.44948348,100940.0,100930.0,0.14237066]
[1734202039616,0.44948348,100940.0,100930.0,0.441583]
[1734202040018,0.65787365,100950.0,100940.0,0.049536]
[1734202040325,0.44948348,100950.0,100940.0,0.17319532]
[1734202040711,0.3608,100950.0,100940.0,0.17319532]
[1734202040913,0.3608,100950.0,100940.0,0.41050766]
[1734202041112,0.3608,100950.0,100940.0,0.17319532]
[1734202042017,0.4592548,100960.0,100950.0,0.049531]
[1734202042205,0.4592548,100960.0,100950.0,0.11136066]
[1734202042605,0.4592548,100960.0,100950.0,0.14196066]
[1734202043216,0.37057132,100960.0,100950.0,0.14196066]
[1734202043517,0.3608,100960.0,100950.0,0.14196066]
[1734202044311,0.3608,100960.0,100950.0,0.20379032]
[1734202044517,0.08868348,100970.0,100960.0,0.049527]
[1734202044719,0.51528348,100980.0,100970.0,0.049522]
[1734202045021,0.3608,100980.0,100970.0,0.11135166]
[1734202045222,0.3608,100980.0,100970.0,0.14367444]
[1734202046714,0.3926,100990.0,100970.0,0.50447444]
[1734202046914,0.3608,100990.0,100980.0,0.14366944]
[1734202047117,0.3608,100990.0,100980.0,0.17586944]
[1734202055127,0.3613,100990.0,100980.0,0.17586944]
[1734202059025,0.0005,100990.0,100980.0,0.17586944]
[1734202059225,0.3613,100990.0,100980.0,0.17586944]
[1734202061040,0.3613,100990.0,100980.0,0.049517]
[1734202061329,0.4565,100990.0,100980.0,0.14366944]
[1734202064237,0.456,100990.0,100980.0,0.14366944]
[1734202067235,0.54468348,100990.0,100980.0,0.1112987]
[1734202067944,0.65597718,100990.0,100980.0,0.049517]
[1734202068130,0.77422463,100990.0,100980.0,0.049517]
[1734202069230,0.83335046,100990.0,100980.0,0.049517]
[1734202069830,0.62375945,100990.0,100980.0,0.1112987]
[1734202070031,0.7122506,100990.0,100980.0,0.1112987]
[1734202070231,0.62375945,100990.0,100980.0,0.1112987]
[1734202070640,0.77156876,100990.0,100980.0,0.1112987]
[1734202070838,0.62375945,100990.0,100980.0,0.1112987]
[1734202071230,0.77156876,100990.0,100980.0,0.1112987]
[1734202073241,0.65332131,100990.0,100980.0,0.1112987]
[1734202074240,0.83069248,100990.0,100980.0,0.1112987]
[1734202074739,0.78118048,100990.0,100980.0,0.1112987]
[1734202074932,0.14780931,100990.0,100980.0,0.77119274]
[1734202075138,0.14780931,100990.0,100980.0,0.80299274]
[1734202075543,0.2661944,100990.0,100980.0,0.80299274]
[1734202075843,0.11838509,100990.0,100980.0,1.32780387]
[1734202076138,0.2661944,100990.0,100980.0,1.32780387]
[1734202076343,0.20719336,100990.0,100980.0,1.09049153]
[1734202076746,0.20719336,100990.0,100980.0,1.14963554]
[1734202077039,0.08880827,100990.0,100980.0,1.14963554]
[1734202077235,0.08880827,100990.0,100980.0,1.51096468]
[1734202077436,0.08880827,100990.0,100980.0,1.41685251]
[1734202078742,2.7e-07,100990.0,100980.0,1.45509764]
[1734202078946,0.21838509,101000.0,100990.0,0.049512]
[1734202079137,0.1,101000.0,100990.0,1.23103619]
[1734202079342,0.1,101000.0,100990.0,1.75912429]
[1734202079741,0.1,101000.0,100990.0,2.11499133]
[1734202080340,0.11888509,101010.0,100990.0,2.11499133]
[1734202080542,0.11888509,101010.0,101000.0,0.77168696]
[1734202080845,0.11888509,101010.0,101000.0,1.29978426]
[1734202081245,0.6269944,101020.0,101010.0,0.049502]
[1734202081451,0.6269944,101020.0,101010.0,0.14361417]
[1734202081645,0.6269944,101020.0,101010.0,0.049502]
[1734202082156,0.6921944,101020.0,101010.0,0.14361417]
[1734202082338,0.6269944,101020.0,101010.0,0.14361417]
[1734202083150,0.47918509,101020.0,101010.0,0.14361417]
[1734202085043,0.47918509,101020.0,101010.0,0.15357169]
[1734202085254,0.47968509,101020.0,101010.0,0.15357169]
[1734202087146,0.3613,101020.0,101010.0,0.05945952]
[1734202087353,0.54488509,101020.0,101010.0,0.05945952]
[1734202089142,0.4265,101020.0,101010.0,0.05945952]
[1734202091456,0.57010917,101020.0,101010.0,0.049502]
[1734202091643,0.68849426,101020.0,101010.0,0.049502]
[1734202092557,0.83596963,101020.0,101010.0,0.049502]
[1734202092943,0.74185746,101020.0,101010.0,0.049502]
[1734202093354,0.68816032,101020.0,101010.0,0.049502]
[1734202093556,0.83596963,101020.0,101010.0,0.049502]
[1734202094342,0.83596963,101020.0,101000.0,0.049506]
[1734202094343,0.049505,101010.0,101000.0,0.049506]
[1734202094551,0.049507,101000.0,100990.0,0.41543]
[1734202094855,0.443207,101000.0,100990.0,0.41543]
[1734202095153,0.475907,101000.0,100990.0,0.41543]
[1734202095349,0.475907,101000.0,100990.0,0.04951]
[1734202095350,0.68808373,101000.0,100990.0,0.04951]
[1734202096162,0.049512,100990.0,100980.0,0.049515]
[1734202096352,0.53472417,100990.0,100980.0,0.049515]
[1734202097256,0.53472417,100990.0,100980.0,0.050015]
[1734202097457,0.65278873,100990.0,100980.0,0.050015]
[1734202098158,0.65278873,100990.0,100980.0,0.049515]
[1734202098551,0.049517,100980.0,100970.0,0.049521]
[1734202098762,0.53702917,100980.0,100970.0,0.049521]
[1734202098962,0.56882917,100980.0,100970.0,0.049521]
[1734202099162,0.049522,100970.0,100960.0,0.65257379]
[1734202099355,0.079722,100970.0,100960.0,0.65257379]
[1734202100460,0.474718,100980.0,100970.0,0.049522]
[1734202100856,0.049522,100970.0,100960.0,0.415406]
[1734202101057,0.53653417,100970.0,100960.0,0.049526]
[1734202101753,0.442422,100970.0,100960.0,0.049526]
[1734202107266,0.049527,100960.0,100950.0,0.04953]
[1734202107567,0.049531,100950.0,100940.0,0.04964358]
[1734202107774,0.410331,100950.0,100940.0,0.04964358]
[1734202108261,0.50444317,100950.0,100940.0,0.04964358]
[1734202108461,0.53734317,100950.0,100940.0,0.04964358]
[1734202110465,0.53734317,100950.0,100940.0,0.00010858]
[1734202115273,0.53734317,100950.0,100940.0,0.00060858]
[1734202117576,0.93145534,100950.0,100940.0,0.00060858]
[1734202117781,0.049546,100920.0,100910.0,0.10975]
[1734202118082,0.410346,100920.0,100910.0,0.11977849]
[1734202118672,0.41044315,100920.0,100910.0,0.11977849]
[1734202119077,0.36089715,100920.0,100910.0,0.11977849]
[1734202120383,9.715e-05,100920.0,100910.0,0.57469066]
[1734202121173,9.715e-05,100920.0,100910.0,0.48057849]
[1734202123073,9.715e-05,100920.0,100910.0,0.65748839]
[1734202124486,9.715e-05,100920.0,100910.0,0.52391298]
[1734202124991,9.715e-05,100920.0,100910.0,0.65748839]
[1734202125686,9.715e-05,100920.0,100910.0,0.75160056]
[1734202125891,9.715e-05,100920.0,100910.0,0.98876835]
[1734202126272,9.715e-05,100920.0,100910.0,0.89465618]
[1734202126681,9.715e-05,100920.0,100910.0,0.98876835]
[1734202128374,9.715e-05,100920.0,100910.0,0.81185845]
[1734202128881,9.715e-05,100920.0,100910.0,0.98928336]
[1734202129082,9.715e-05,100920.0,100910.0,0.85519294]
[1734202129289,9.715e-05,100920.0,100910.0,0.85569294]
[1734202129489,0.3608,100940.0,100930.0,0.049541]
[1734202129694,0.3608,100940.0,100930.0,0.09287549]
[1734202129884,0.3608,100940.0,100930.0,0.15667549]
[1734202130288,0.3608,100940.0,100930.0,0.113341]
[1734202131086,0.3608,100940.0,100930.0,0.29080445]
[1734202133583,0.50444817,100940.0,100930.0,0.049541]
[1734202133785,0.62251273,100940.0,100930.0,0.049541]
[1734202134000,0.52840056,100940.0,100930.0,0.049541]
[1734202134694,0.62251273,100940.0,100930.0,0.049541]
[1734202134891,0.68521273,100940.0,100930.0,0.0928923]
[1734202135087,0.83302204,100940.0,100930.0,0.049541]
[1734202135284,0.71495748,100940.0,100930.0,0.049541]
[1734202137197,0.89232865,100940.0,100930.0,0.049541]
[1734202138485,0.82962865,100940.0,100930.0,0.049541]
[1734202139090,0.89122865,100940.0,100930.0,0.22700445]
[1734202139395,0.89138169,100940.0,100930.0,0.22700445]
[1734202139596,0.74341934,100940.0,100930.0,0.22700445]
[1734202140387,0.71401536,100940.0,100930.0,0.22700445]
[1734202142501,0.61990319,100940.0,100930.0,0.22700445]
[1734202143102,0.61990319,100940.0,100930.0,0.46417224]
[1734202144508,0.50876719,100940.0,100930.0,0.36447114]
[1734202144697,0.50876719,100940.0,100930.0,0.60163893]
[1734202145005,0.50876719,100940.0,100930.0,0.63303893]
[1734202145006,0.62714004,100940.0,100930.0,0.63303893]
[1734202145309,0.62714004,100940.0,100930.0,0.66443608]
[1734202145596,0.47917285,100940.0,100930.0,0.48697263]
[1734202145806,0.47917285,100940.0,100930.0,1.01711766]
[1734202148198,0.47917285,100940.0,100930.0,0.77994987]
[1734202149097,0.66202657,100950.0,100940.0,0.049536]
[1734202149298,0.66152657,100950.0,100940.0,0.50829306]
[1734202149809,0.51355938,100950.0,100940.0,0.33026218]
[1734202150012,0.51355938,100950.0,100940.0,0.42437435]
[1734202150207,0.11837285,100950.0,100940.0,0.38102268]
[1734202150398,0.0005,100950.0,100940.0,1.34749017]
[1734202150594,0.0005,100950.0,100940.0,1.11011566]
[1734202151405,0.47917285,100960.0,100950.0,0.049531]
[1734202151610,0.47917285,100960.0,100950.0,0.50814241]
[1734202151906,0.47917285,100960.0,100950.0,0.62676597]
[1734202152107,0.3608,100960.0,100950.0,0.33017395]
[1734202152807,0.77077921,100960.0,100950.0,0.17790394]
[1734202153010,0.83337921,100960.0,100950.0,0.17790394]
[1734202155505,0.71500636,100960.0,100950.0,0.17790394]
[1734202156009,0.83330362,100960.0,100950.0,0.17790394]
[1734202156200,0.71500636,100960.0,100950.0,0.17790394]
[1734202156406,0.71550636,100960.0,100950.0,0.17790394]
[1734202156605,1.01550636,100960.0,100950.0,0.17790394]
[1734202156809,0.049531,100950.0,100940.0,0.17790394]
[1734202157011,0.80159427,100950.0,100940.0,0.17790394]
[1734202157306,0.75196144,100950.0,100940.0,0.17791573]
[1734202157611,0.77731605,100950.0,100940.0,0.17791573]
[1734202157818,0.68320388,100950.0,100940.0,0.17791573]
[1734202158000,0.77731605,100950.0,100930.0,0.4646767]
[1734202158208,0.68493767,100940.0,100930.0,0.4646767]
[1734202159012,0.68493767,100940.0,100930.0,0.4151367]
[1734202159615,0.049541,100930.0,100920.0,0.46666757]
[1734202159799,0.52862227,100930.0,100920.0,0.46666757]
[1734202160203,0.62273444,100930.0,100920.0,0.46666757]
[1734202160499,0.62273444,100930.0,100920.0,0.46616757]
[1734202161314,0.62273444,100930.0,100920.0,0.46666757]
[1734202162212,0.47908127,100930.0,100920.0,0.46666757]
[1734202162514,0.52862227,100930.0,100920.0,0.49876757]
[1734202163210,0.3608,100930.0,100920.0,0.49876757]
[1734202163415,0.47908127,100930.0,100920.0,0.49926757]
[1734202163616,0.52862227,100930.0,100920.0,0.49926757]
[1734202164310,0.410341,100930.0,100920.0,0.49876757]
[1734202165409,0.410341,100930.0,100920.0,0.49926757]
[1734202165609,0.410341,100930.0,100920.0,0.32135184]
[1734202166213,0.410341,100930.0,100920.0,0.49920173]
[1734202166412,0.410341,100930.0,100920.0,0.32085184]
[1734202166711,0.410341,100930.0,100920.0,0.49721619]
[1734202167410,0.52861827,100940.0,100930.0,0.049541]
[1734202167606,0.52861827,100940.0,100930.0,0.26018291]
[1734202168811,0.52861827,100940.0,100930.0,0.49740388]
[1734202170221,0.47908127,100940.0,100930.0,0.49740388]
[1734202170613,0.410336,100940.0,100930.0,0.54075561]
[1734202171818,0.3608,100940.0,100930.0,0.63486778]
[1734202172006,0.47908127,100950.0,100940.0,0.049536]
[1734202172212,0.47908127,100950.0,100940.0,0.46460467]
[1734202173214,0.3608,100950.0,100940.0,0.58890088]
[1734202173414,0.3608,100950.0,100940.0,0.53813585]
[1734202173615,0.3608,100950.0,100940.0,0.49478871]
[1734202177222,0.3608,100950.0,100940.0,0.58890088]
[1734202177518,0.3608,100950.0,100940.0,0.7509425]
[1734202177723,0.3608,100950.0,100940.0,0.98289133]
[1734202178222,0.32338212,100970.0,100960.0,0.049527]
[1734202178223,0.51096751,100970.0,100960.0,0.049527]
[1734202178424,0.48056751,100970.0,100960.0,0.22729202]
[1734202179327,0.50592041,100970.0,100960.0,0.22729202]
[1734202179509,0.62420168,100970.0,100960.0,0.22729202]
[1734202180115,0.62420168,100970.0,100960.0,0.049527]
[1734202182818,0.62420168,100970.0,100960.0,0.22729202]
[1734202183020,0.62420168,100970.0,100960.0,0.049527]
[1734202184525,0.049527,100960.0,100950.0,0.22729602]
[1734202184725,0.50443917,100960.0,100950.0,0.22729602]
[1734202185332,0.50493917,100960.0,100950.0,0.22729602]
[1734202185932,0.71802044,100960.0,100950.0,0.049531]
[1734202186329,0.71752044,100960.0,100950.0,0.049531]
[1734202187441,0.71802044,100960.0,100950.0,0.049531]
[1734202188339,0.71752044,100960.0,100950.0,0.049531]
[1734202189455,0.71802044,100960.0,100950.0,0.049531]
[1734202189633,0.71802044,100960.0,100940.0,0.79058744]
[1734202189838,0.71802044,100960.0,100940.0,0.83044005]
[1734202189839,0.50444317,100950.0,100940.0,0.83044005]
[1734202190341,0.50444317,100950.0,100940.0,0.59342002]
[1734202190748,0.50444317,100950.0,100940.0,0.22730002]
[1734202192141,0.62272444,100950.0,100940.0,0.22730002]
[1734202196448,0.71683661,100950.0,100940.0,0.17776502]
[1734202196747,0.62272444,100950.0,100940.0,0.22730102]
[1734202197152,0.77058515,100950.0,100940.0,0.22730102]
[1734202200955,0.62272444,100950.0,100940.0,0.41478505]
[1734202201142,0.86469732,100950.0,100940.0,0.17776502]
[1734202201346,0.74641605,100950.0,100940.0,0.17776502]
[1734202201545,0.049536,100940.0,100930.0,0.46482405]
[1734202201750,0.80660145,100940.0,100930.0,0.50817635]
[1734202202348,0.80660145,100940.0,100930.0,0.50767635]
[1734202202552,0.80660145,100940.0,100930.0,0.46432405]
[1734202202758,0.86572504,100940.0,100930.0,0.27065639]
[1734202203056,0.61738401,100940.0,100930.0,0.5076756]
[1734202203254,0.61738401,100940.0,100930.0,0.5394756]
[1734202203451,0.49906785,100940.0,100930.0,0.5399756]
[1734202204553,0.49906785,100940.0,100930.0,0.39351058]
[1734202205452,0.49906785,100940.0,100930.0,0.39401058]
[1734202205658,0.49906785,100940.0,100930.0,0.35065903]
[1734202207556,0.71149618,100940.0,100930.0,0.17838404]
[1734202207763,0.71806433,100940.0,100930.0,0.17838404]
[1734202207952,0.86592504,100940.0,100930.0,0.0005]
[1734202209453,0.77062504,100940.0,100930.0,0.050041]
[1734202209654,0.44949513,100940.0,100930.0,0.14415317]
[1734202209851,0.44949513,100940.0,100930.0,0.48612915]
[1734202210649,0.44949513,100940.0,100930.0,0.39201698]
[1734202211158,0.44949513,100940.0,100930.0,0.92259794]
[1734202211361,0.44949513,100940.0,100930.0,0.92209794]
[1734202212155,0.44949513,100940.0,100930.0,0.68507791]
[1734202214662,0.44949513,100940.0,100930.0,0.66424458]
[1734202217060,0.56781129,100940.0,100930.0,0.66424458]
[1734202218361,0.44949513,100940.0,100930.0,0.75835675]
[1734202218658,0.44949513,100940.0,100930.0,1.11418821]
[1734202218853,0.44949513,100940.0,100930.0,1.02007604]
[1734202219258,0.44949513,100940.0,100930.0,0.7860213]
[1734202219455,0.44949513,100940.0,100930.0,1.01907209]
[1734202220062,0.56781129,100940.0,100930.0,1.01907209]
[1734202220360,0.56781129,100940.0,100930.0,0.98827209]
[1734202220561,0.56781129,100940.0,100930.0,1.13192526]
[1734202220751,0.08869513,100940.0,100930.0,1.77051287]
[1734202220955,0.08869513,100940.0,100930.0,1.47398665]
[1734202221357,0.56831129,100950.0,100930.0,1.47398665]
[1734202221665,0.56831129,100950.0,100940.0,0.37739585]
[1734202221870,0.56831129,100950.0,100940.0,0.65380259]
[1734202222053,0.56831129,100950.0,100940.0,0.74791476]
[1734202222955,0.47961616,100950.0,100940.0,0.65380259]
[1734202223164,0.47961616,100950.0,100940.0,0.61044664]
[1734202224466,0.0005,100950.0,100940.0,1.46439517]
[1734202224669,0.0005,100950.0,100940.0,1.44546395]
[1734202225058,0.59855116,100960.0,100940.0,1.46767634]
[1734202225059,0.20715116,100960.0,100940.0,1.46767634]
[1734202225267,0.088835,100960.0,100950.0,0.44034389]
[1734202225467,0.088835,100960.0,100950.0,0.7817406]
[1734202227166,0.088835,100960.0,100950.0,0.73839468]
[1734202227566,0.5694374,100970.0,100960.0,0.049527]
[1734202227773,0.5694374,100970.0,100960.0,0.46448135]
[1734202229058,0.5694374,100970.0,100960.0,0.22736458]
[1734202229259,0.5694374,100970.0,100960.0,0.46448135]
[1734202229564,0.5694374,100970.0,100960.0,0.22736458]
[1734202229963,0.2086374,100970.0,100960.0,0.22736458]
[1734202230159,0.5694374,100970.0,100960.0,0.46448135]
[1734202230554,0.5694374,100970.0,100960.0,0.22736458]
[1734202230953,0.6005374,100970.0,100960.0,0.22736458]
[1734202232367,0.69464957,100970.0,100960.0,0.22736458]
[1734202232568,0.74417157,100970.0,100960.0,0.17783758]
[1734202232769,0.049527,100960.0,100950.0,0.44695435]
[1734202232973,0.77468363,100960.0,100950.0,0.032]
[1734202233673,0.77518363,100960.0,100950.0,0.032]
[1734202233868,0.77518359,100960.0,100950.0,0.032]
[1734202234359,0.77468359,100960.0,100950.0,0.032]
[1734202234561,0.68605533,100960.0,100950.0,0.032]
[1734202235369,0.049531,100950.0,100940.0,0.46448635]
[1734202235562,0.74238443,100950.0,100940.0,0.27071584]
[1734202235962,0.74238443,100950.0,100940.0,0.22736958]
[1734202236165,0.74238443,100950.0,100940.0,0.049532]
[1734202236569,0.65375933,100950.0,100940.0,0.22736958]
[1734202237265,0.049536,100940.0,100930.0,0.46449335]
[1734202237471,0.65644994,100940.0,100930.0,0.50834443]
[1734202237672,0.7747661,100940.0,100930.0,0.22787658]
[1734202237865,0.7747661,100940.0,100930.0,0.050039]